bitfinex-derivatives/quotes_BTCF0:USTF0_20250614
["timestamp","ask_amount","ask_price","bid_price","bid_amount"]
[1749877186433,0.28444906,105430.0,105420.0,2.77430891]
[1749877186731,0.09484186,105430.0,105420.0,2.76396662]
[1749877186936,0.09484186,105430.0,105420.0,3.14396662]
[1749877187233,0.09484186,105430.0,105420.0,2.76396662]
[1749877187433,0.09484186,105430.0,105420.0,2.77430687]
[1749877188331,0.09484186,105430.0,105420.0,2.76396662]
[1749877188530,0.09484186,105430.0,105420.0,2.77430687]
[1749877188737,0.28444926,105430.0,105420.0,2.61487953]
[1749877189235,0.28444926,105430.0,105420.0,2.61488012]
[1749877190537,0.28444926,105430.0,105420.0,2.59835278]
[1749877190738,0.28444926,105430.0,105420.0,2.90835278]
[1749877190934,0.28444926,105430.0,105420.0,2.59835278]
[1749877191434,0.09484186,105430.0,105420.0,2.728063]
[1749877191629,0.09484186,105430.0,105420.0,2.758363]
[1749877191937,0.09484186,105430.0,105420.0,3.121263]
[1749877192136,0.09484186,105430.0,105420.0,3.11092216]
[1749877192338,0.09484186,105430.0,105420.0,3.121263]
[1749877192837,0.09484186,105430.0,105420.0,3.12126303]
[1749877193237,0.09484186,105430.0,105420.0,3.11092216]
[1749877193539,0.09484186,105430.0,105420.0,3.12126303]
[1749877193842,0.28444916,105430.0,105420.0,3.11092216]
[1749877194133,0.28444916,105430.0,105420.0,3.12127261]
[1749877195039,0.09484186,105430.0,105420.0,3.12127261]
[1749877195440,0.28444916,105430.0,105420.0,3.12127261]
[1749877195827,0.09484186,105430.0,105420.0,3.12127261]
[1749877196033,0.09484186,105430.0,105420.0,3.11092216]
[1749877196232,0.09484186,105430.0,105420.0,3.12127261]
[1749877196433,0.28444916,105430.0,105420.0,3.12127261]
[1749877196638,0.28444916,105430.0,105420.0,3.1701276]
[1749877196839,0.28444916,105430.0,105420.0,3.18047805]
[1749877197441,0.28444916,105430.0,105420.0,3.1701276]
[1749877197739,0.28444916,105430.0,105420.0,3.18047808]
[1749877197940,0.28444916,105430.0,105420.0,3.18048012]
[1749877198742,0.28444916,105430.0,105420.0,3.18048155]
[1749877199245,0.28444916,105430.0,105420.0,3.18048342]
[1749877199436,0.28444916,105430.0,105420.0,3.1701276]
[1749877199941,0.28444916,105430.0,105420.0,3.18048342]
[1749877200136,0.28444916,105430.0,105420.0,2.85048342]
[1749877200341,0.28444916,105430.0,105420.0,2.85048343]
[1749877200544,0.28444916,105430.0,105420.0,2.8401276]
[1749877200944,0.09484186,105430.0,105420.0,2.85048343]
[1749877202144,0.06354186,105430.0,105420.0,2.85048343]
[1749877202345,0.03304186,105430.0,105420.0,2.85048343]
[1749877202641,0.03304186,105430.0,105420.0,3.21318343]
[1749877203344,0.03304186,105430.0,105420.0,3.2028276]
[1749877203547,0.00014186,105430.0,105420.0,3.21318343]
[1749877203744,0.00014186,105430.0,105420.0,3.21318391]
[1749877204143,0.00014186,105430.0,105420.0,3.21318385]
[1749877204343,0.00014186,105430.0,105420.0,3.21318383]
[1749877204650,0.00014186,105430.0,105420.0,3.2028276]
[1749877204950,0.00014186,105430.0,105420.0,3.21318383]
[1749877205750,0.00014186,105430.0,105420.0,3.22797471]
[1749877205953,0.00014186,105430.0,105420.0,3.21761848]
[1749877206345,0.00014186,105430.0,105420.0,3.22797701]
[1749877206549,0.00014186,105430.0,105420.0,3.21318382]
[1749877206750,0.00014186,105430.0,105420.0,3.16877158]
[1749877206950,0.00014186,105430.0,105420.0,3.15841535]
[1749877207152,0.00014186,105430.0,105420.0,3.15397839]
[1749877207352,0.00014186,105430.0,105420.0,3.16877156]
[1749877207648,0.00014186,105430.0,105420.0,3.14362216]
[1749877207856,0.00014186,105430.0,105420.0,3.15397836]
[1749877208149,0.00014186,105430.0,105420.0,3.15841532]
[1749877208355,0.00014186,105430.0,105420.0,3.16877152]
[1749877208850,0.00014186,105430.0,105420.0,3.15833532]
[1749877209054,0.00014186,105430.0,105420.0,3.16869344]
[1749877209451,0.00014186,105430.0,105420.0,3.15833532]
[1749877209758,0.00014186,105430.0,105420.0,3.15390027]
[1749877210251,0.00014186,105430.0,105420.0,3.15833531]
[1749877210446,0.00014186,105430.0,105420.0,3.16869339]
[1749877210648,0.00014186,105430.0,105420.0,3.15390024]
[1749877210850,0.00014186,105430.0,105420.0,3.16869336]
[1749877211049,0.00014186,105430.0,105420.0,3.15833527]
[1749877211251,0.00014186,105430.0,105420.0,3.16869335]
[1749877211455,0.00014186,105430.0,105420.0,3.15833714]
[1749877211653,0.00014186,105430.0,105420.0,3.17370333]
[1749877211853,0.00114186,105430.0,105420.0,3.16990025]
[1749877212051,0.00114186,105430.0,105420.0,3.18470333]
[1749877212251,0.00114186,105430.0,105420.0,3.15954216]
[1749877212451,0.00114186,105430.0,105420.0,3.18470332]
[1749877213255,0.00114186,105430.0,105420.0,3.18469919]
[1749877213456,0.00114186,105430.0,105420.0,3.18469631]
[1749877213652,0.00114186,105430.0,105420.0,3.17434169]
[1749877213858,0.00114186,105430.0,105420.0,2.85469729]
[1749877214053,0.00114186,105430.0,105420.0,3.19469666]
[1749877214558,0.00114186,105430.0,105420.0,3.19469635]
[1749877214853,0.00114186,105430.0,105420.0,3.16954216]
[1749877215054,0.00114186,105430.0,105420.0,3.19469635]
[1749877215355,0.00114186,105430.0,105420.0,3.18434161]
[1749877215656,0.00114186,105430.0,105420.0,3.30288713]
[1749877215851,0.00114186,105430.0,105420.0,3.31324169]
[1749877216051,0.00114186,105430.0,105420.0,3.30288713]
[1749877216250,0.00114186,105430.0,105420.0,3.30288699]
[1749877216455,0.00114186,105430.0,105420.0,3.28808764]
[1749877216652,0.00114186,105430.0,105420.0,3.31324388]
[1749877216957,0.00114186,105430.0,105420.0,3.29844506]
[1749877217154,0.00114186,105430.0,105420.0,3.31324391]
[1749877217456,0.00114186,105430.0,105420.0,3.21405732]
[1749877217657,0.00114186,105430.0,105420.0,3.22441419]
[1749877217853,0.00114186,105430.0,105420.0,3.22441414]
[1749877218059,0.00114186,105430.0,105420.0,3.19925928]
[1749877218359,0.00114186,105430.0,105420.0,3.22441365]
[1749877218755,0.00114186,105430.0,105420.0,3.22441366]
[1749877218948,0.00114186,105430.0,105420.0,3.2140573]
[1749877219156,0.00114186,105430.0,105420.0,3.19925928]
[1749877219953,0.00114186,105430.0,105420.0,3.2140573]
[1749877220361,0.00114186,105430.0,105420.0,3.22441367]
[1749877220961,0.00114186,105430.0,105420.0,3.20961565]
[1749877221656,0.00114186,105430.0,105420.0,3.22441368]
[1749877222049,0.00114186,105430.0,105420.0,3.20961565]
[1749877222457,0.00114186,105430.0,105420.0,2.61019521]
[1749877222664,0.00114186,105430.0,105420.0,3.24961565]
[1749877222863,0.00114186,105430.0,105420.0,3.23925928]
[1749877223157,0.00114186,105430.0,105420.0,3.26438008]
[1749877223965,0.00114186,105430.0,105420.0,3.26438009]
[1749877224262,0.00114186,105430.0,105420.0,3.25402373]
[1749877224462,0.00114186,105430.0,105420.0,3.24961285]
[1749877224667,0.00114186,105430.0,105420.0,3.34283605]
[1749877224855,0.00114186,105430.0,105420.0,3.33842505]
[1749877225052,0.00114186,105430.0,105420.0,3.26437744]
[1749877225258,0.00114186,105430.0,105420.0,3.23925928]
[1749877225567,0.00114186,105430.0,105420.0,3.34283578]
[1749877225867,0.00114186,105430.0,105420.0,3.35318936]
[1749877226063,0.00114186,105430.0,105420.0,3.3280712]
[1749877226267,0.00114186,105430.0,105420.0,3.34285199]
[1749877226467,0.00114186,105430.0,105420.0,3.35320557]
[1749877226668,0.00114186,105430.0,105420.0,3.25404007]
[1749877226969,0.00114186,105430.0,105420.0,3.26439364]
[1749877227864,0.0351695,105450.0,105440.0,0.1895894]
[1749877228059,0.04038,105470.0,105460.0,0.1895534]
[1749877228361,0.17009022,105470.0,105460.0,2.92837194]
[1749877228566,0.39062562,105470.0,105460.0,0.93117999]
[1749877228864,0.96624162,105470.0,105460.0,0.06723454]
[1749877229065,0.1895534,105460.0,105450.0,0.18971326]
[1749877229270,1.05955189,105460.0,105450.0,0.18971326]
[1749877229462,1.15437589,105460.0,105450.0,0.18971326]
[1749877229970,1.15437589,105460.0,105450.0,0.31942348]
[1749877230170,1.40437589,105460.0,105450.0,0.31942348]
[1749877230670,1.40737589,105460.0,105450.0,0.18971326]
[1749877231063,1.41337589,105460.0,105450.0,0.18971326]
[1749877232171,1.16337589,105460.0,105450.0,0.18971326]
[1749877232370,1.22747589,105460.0,105450.0,0.18971326]
[1749877235869,1.22747589,105460.0,105450.0,0.19385161]
[1749877238370,1.22747589,105460.0,105450.0,0.00428021]
[1749877238569,1.37573159,105460.0,105450.0,0.19385161]
[1749877238872,1.37573159,105460.0,105450.0,0.00428021]
[1749877239070,1.28090759,105460.0,105450.0,0.19385161]
[1749877239268,1.28090759,105460.0,105450.0,0.37057161]
[1749877239269,1.62573159,105460.0,105450.0,0.37057161]
[1749877240172,1.37573159,105460.0,105450.0,0.19385161]
[1749877245872,1.37573159,105460.0,105450.0,0.19385151]
[1749877246885,1.22747589,105460.0,105450.0,0.19385151]
[1749877247979,1.22747589,105460.0,105450.0,0.00428021]
[1749877248281,1.13265189,105460.0,105450.0,0.19385161]
[1749877253485,1.13265189,105460.0,105450.0,0.00428021]
[1749877254180,1.47747589,105460.0,105450.0,0.00428021]
[1749877254387,1.63695354,105460.0,105450.0,0.00428021]
[1749877258588,1.84405811,105460.0,105450.0,0.00428021]
[1749877261087,1.84405811,105460.0,105450.0,0.01903394]
[1749877261276,1.84405811,105460.0,105450.0,0.01903396]
[1749877261478,1.84405811,105460.0,105450.0,0.00428021]
[1749877261678,1.84405811,105460.0,105450.0,0.01903395]
[1749877263089,1.63695354,105460.0,105450.0,0.01903395]
[1749877263686,1.63695354,105460.0,105450.0,0.00428021]
[1749877263889,1.63695354,105460.0,105450.0,0.01903395]
[1749877264282,1.38695354,105460.0,105450.0,0.00428021]
[1749877264588,1.38695354,105460.0,105450.0,0.01900971]
[1749877264787,1.38695354,105460.0,105450.0,0.00428021]
[1749877265284,1.38695354,105460.0,105450.0,0.01900958]
[1749877265690,1.38695354,105460.0,105450.0,0.00428021]
[1749877265883,1.38695354,105460.0,105450.0,0.01900822]
[1749877266083,1.38695354,105460.0,105450.0,0.01900805]
[1749877266389,1.38695354,105460.0,105450.0,0.01901243]
[1749877266584,1.38695354,105460.0,105450.0,0.00428021]
[1749877266989,1.38695354,105460.0,105450.0,0.01901167]
[1749877267592,1.38695354,105460.0,105450.0,0.01901166]
[1749877267890,1.38695354,105460.0,105450.0,0.01901141]
[1749877268092,1.38695354,105460.0,105450.0,0.00428021]
[1749877268288,2.32875354,105460.0,105450.0,0.01901139]
[1749877268685,2.32875354,105460.0,105450.0,0.00428021]
[1749877268890,2.32875354,105460.0,105450.0,0.01901139]
[1749877269593,2.32875354,105460.0,105450.0,0.0190114]
[1749877269793,2.32875354,105460.0,105450.0,0.01901139]
[1749877270292,2.32871354,105460.0,105450.0,0.01901139]
[1749877270701,2.32871354,105460.0,105450.0,0.00428021]
[1749877270901,2.32871354,105460.0,105450.0,0.0190114]
[1749877271098,2.32871354,105460.0,105450.0,0.00428021]
[1749877271492,2.32871354,105460.0,105450.0,0.01901602]
[1749877271706,0.1895713,105450.0,105440.0,0.02757982]
[1749877271897,1.24981081,105450.0,105440.0,0.02757982]
[1749877272197,1.22020768,105450.0,105440.0,0.02757982]
[1749877272401,1.24981081,105450.0,105440.0,0.02757982]
[1749877272605,1.24981081,105450.0,105440.0,0.05967982]
[1749877273103,1.25381081,105450.0,105440.0,0.05967982]
[1749877274104,1.25881081,105450.0,105440.0,0.05967982]
[1749877274603,0.99939037,105450.0,105440.0,0.05967982]
[1749877274797,1.25581081,105450.0,105440.0,0.05967982]
[1749877274996,1.25981081,105450.0,105440.0,0.05967982]
[1749877277204,1.25981081,105450.0,105440.0,0.02757982]
[1749877278004,1.25981081,105450.0,105440.0,0.05967982]
[1749877279507,1.25981081,105450.0,105440.0,0.06381817]
[1749877282305,1.25981081,105450.0,105440.0,0.09601817]
[1749877283605,1.25981081,105450.0,105440.0,0.11084122]
[1749877283807,1.25981081,105450.0,105440.0,0.09601817]
[1749877284001,1.25981081,105450.0,105440.0,0.11084122]
[1749877284404,1.11179174,105450.0,105440.0,0.09601817]
[1749877284703,1.25981081,105450.0,105440.0,0.11084122]
[1749877284902,1.25981081,105450.0,105440.0,0.09601817]
[1749877285210,1.25981081,105450.0,105440.0,0.11084122]
[1749877285602,1.25981081,105450.0,105440.0,0.09601817]
[1749877285803,1.62061081,105450.0,105440.0,0.11084122]
[1749877286807,1.62061081,105450.0,105440.0,0.11084123]
[1749877287104,1.62061081,105450.0,105440.0,0.09601817]
[1749877287505,1.62061081,105450.0,105440.0,0.11084123]
[1749877288111,1.62061081,105450.0,105440.0,0.09601817]
[1749877288306,1.62061081,105450.0,105440.0,0.11084123]
[1749877289213,1.62061081,105450.0,105440.0,0.09601817]
[1749877289812,1.62061081,105450.0,105440.0,0.11084123]
[1749877290117,1.62061081,105450.0,105440.0,0.09601817]
[1749877290309,1.62061081,105450.0,105440.0,0.11084123]
[1749877290511,1.62061081,105450.0,105440.0,0.09601817]
[1749877290810,0.2844148,105430.0,105420.0,0.14693195]
[1749877291005,1.04109789,105430.0,105420.0,0.0323]
[1749877291201,1.17080811,105430.0,105420.0,0.0323]
[1749877291607,1.24484552,105430.0,105420.0,0.03643835]
[1749877292201,1.24484552,105430.0,105420.0,0.21267835]
[1749877292406,1.24484552,105430.0,105420.0,0.03643835]
[1749877292710,1.24484552,105430.0,105420.0,0.0323]
[1749877293010,1.24684552,105430.0,105420.0,0.0323]
[1749877293716,1.24884552,105430.0,105420.0,0.0323]
[1749877293918,1.2783872,105430.0,105420.0,0.0323]
[1749877294113,1.2823872,105430.0,105420.0,0.0323]
[1749877294313,1.2803872,105430.0,105420.0,0.0323]
[1749877294512,1.2843872,105430.0,105420.0,0.0626]
[1749877294914,1.3454872,105430.0,105420.0,0.0626]
[1749877295109,1.4638945,105430.0,105420.0,0.0626]
[1749877295314,1.31587543,105430.0,105420.0,0.0626]
[1749877295514,1.19746813,105430.0,105420.0,0.0626]
[1749877295714,1.31586037,105430.0,105420.0,0.0626]
[1749877295915,1.31586037,105430.0,105420.0,0.0946]
[1749877299222,1.31586037,105430.0,105420.0,0.032]
[1749877300520,1.34776037,105430.0,105420.0,0.032]
[1749877302721,1.34776037,105430.0,105420.0,0.04682534]
[1749877303811,1.34776037,105430.0,105420.0,0.032]
[1749877304015,1.34776037,105430.0,105420.0,0.04682534]
[1749877306424,1.34776037,105430.0,105420.0,0.032]
[1749877306627,1.34776037,105430.0,105420.0,0.04682534]
[1749877307225,1.34776037,105430.0,105420.0,0.032]
[1749877307434,1.34776037,105430.0,105420.0,0.01482534]
[1749877307727,0.1896252,105420.0,105410.0,0.27068186]
[1749877307927,0.91013542,105420.0,105410.0,0.32863137]
[1749877308430,0.91013542,105420.0,105410.0,0.31380603]
[1749877308729,0.91013542,105420.0,105410.0,0.32863137]
[1749877309131,0.91013542,105420.0,105410.0,0.2855072]
[1749877309429,0.91413542,105420.0,105410.0,0.31380669]
[1749877309627,0.91413542,105420.0,105410.0,0.32863203]
[1749877309827,0.91713542,105420.0,105410.0,0.32863203]
[1749877310635,0.91713542,105420.0,105410.0,0.31380669]
[1749877311024,0.91713542,105420.0,105410.0,0.32863203]
[1749877311222,0.91713542,105420.0,105410.0,0.2855072]
[1749877312132,0.91713542,105420.0,105410.0,0.27068186]
[1749877312334,0.91713542,105420.0,105410.0,0.2855072]
[1749877312832,0.91713542,105420.0,105410.0,0.27068186]
[1749877313035,0.91713542,105420.0,105410.0,0.2855072]
[1749877313329,0.91713542,105420.0,105410.0,0.27068186]
[1749877313533,0.91713542,105420.0,105410.0,0.2855072]
[1749877313827,0.91713542,105420.0,105410.0,0.27068186]
[1749877314026,0.91713542,105420.0,105410.0,0.2855072]
[1749877314529,0.91713542,105420.0,105410.0,0.32864417]
[1749877316125,0.91713542,105420.0,105410.0,0.31381883]
[1749877316325,0.91713542,105420.0,105410.0,0.32864417]
[1749877316533,0.91713542,105420.0,105410.0,0.31381883]
[1749877316729,0.91713542,105420.0,105410.0,0.32864417]
[1749877317521,0.91713542,105420.0,105410.0,0.31381883]
[1749877317726,0.91713542,105420.0,105410.0,0.32864417]
[1749877318827,0.91713542,105420.0,105410.0,0.31381883]
[1749877319030,0.91713542,105420.0,105410.0,0.32864417]
[1749877319430,0.91713542,105420.0,105410.0,0.31381883]
[1749877319626,0.91713542,105420.0,105410.0,0.50346203]
[1749877319831,0.91713542,105420.0,105410.0,0.32864417]
[1749877320031,0.91713542,105420.0,105410.0,0.31381883]
[1749877320233,0.91713542,105420.0,105410.0,0.32864416]
[1749877320529,0.91713542,105420.0,105410.0,0.31381883]
[1749877320731,0.91713542,105420.0,105410.0,0.32864416]
[1749877320928,0.91713542,105420.0,105410.0,0.31381883]
[1749877321437,0.91713542,105420.0,105410.0,0.32864416]
[1749877322036,0.91713542,105420.0,105410.0,0.31381883]
[1749877322238,0.91713542,105420.0,105410.0,0.32864416]
[1749877322434,0.91713542,105420.0,105410.0,0.31381883]
[1749877322637,1.04684564,105420.0,105410.0,0.35818351]
[1749877322833,1.07814564,105420.0,105410.0,0.35818351]
[1749877323234,1.07814564,105420.0,105410.0,0.37300884]
[1749877323637,0.94843542,105420.0,105410.0,0.35818351]
[1749877323839,0.94843542,105420.0,105410.0,0.37300884]
[1749877324040,0.94843542,105420.0,105410.0,0.37714719]
[1749877324241,0.94843542,105420.0,105410.0,0.36232186]
[1749877324441,0.94843542,105420.0,105410.0,0.37714719]
[1749877324948,0.94843542,105420.0,105410.0,0.36232186]
[1749877325147,0.94843542,105420.0,105410.0,0.37714719]
[1749877326044,0.94843542,105420.0,105410.0,0.56679049]
[1749877326540,0.94843542,105420.0,105410.0,0.55196516]
[1749877326746,0.94843542,105420.0,105410.0,0.37714719]
[1749877327046,0.94843542,105420.0,105410.0,0.36232186]
[1749877327342,0.94843542,105420.0,105410.0,0.37714719]
[1749877328246,0.94843542,105420.0,105410.0,0.56679049]
[1749877329048,0.94843542,105420.0,105410.0,0.55196516]
[1749877329251,0.94843542,105420.0,105410.0,0.37714719]
[1749877329549,1.06682766,105420.0,105410.0,0.36232186]
[1749877329741,1.06682766,105420.0,105410.0,0.37714719]
[1749877330945,1.06682766,105420.0,105410.0,0.36232186]
[1749877331149,1.06682766,105420.0,105410.0,0.37714719]
[1749877331543,1.06682766,105420.0,105410.0,0.36232186]
[1749877332043,1.06682766,105420.0,105410.0,0.37714719]
[1749877332244,1.06682766,105420.0,105410.0,0.36232186]
[1749877332549,1.06682766,105420.0,105410.0,0.37714719]
[1749877332853,1.06682766,105420.0,105410.0,0.36232186]
[1749877333046,1.09992766,105420.0,105410.0,0.37714719]
[1749877333247,1.09992766,105420.0,105410.0,0.35818351]
[1749877333543,1.09992766,105420.0,105410.0,0.37300884]
[1749877334047,1.09992766,105420.0,105410.0,0.35818351]
[1749877334248,1.09992766,105420.0,105410.0,0.37714719]
[1749877335052,1.09992766,105420.0,105410.0,0.36232186]
[1749877335646,1.09992766,105420.0,105410.0,0.37714719]
[1749877335850,1.09992766,105420.0,105410.0,0.36232186]
[1749877336150,1.09992766,105420.0,105410.0,0.37300884]
[1749877338053,1.22963788,105420.0,105410.0,0.37300884]
[1749877338245,1.22963788,105420.0,105410.0,0.35818351]
[1749877338448,1.22963788,105420.0,105410.0,0.37300884]
[1749877339256,1.22963788,105420.0,105410.0,0.37714719]
[1749877339452,1.22963788,105420.0,105410.0,0.36232186]
[1749877339746,1.22963788,105420.0,105410.0,0.33278251]
[1749877341352,1.22963788,105420.0,105410.0,0.31795718]
[1749877341552,1.22963788,105420.0,105410.0,0.33278251]
[1749877342142,1.22963788,105420.0,105410.0,0.31795718]
[1749877342346,1.22963788,105420.0,105410.0,0.33278251]
[1749877342549,1.22963788,105420.0,105410.0,0.31795718]
[1749877342955,1.22963788,105420.0,105410.0,0.26968251]
[1749877343153,1.22963788,105420.0,105410.0,0.13780728]
[1749877343343,1.26273788,105420.0,105410.0,0.05810451]
[1749877343548,1.29236471,105420.0,105410.0,0.02813157]
[1749877344054,1.29236471,105420.0,105410.0,0.02813197]
[1749877344256,1.29236471,105420.0,105410.0,0.02817632]
[1749877344458,1.29236471,105420.0,105410.0,0.02817631]
[1749877344855,1.29236471,105420.0,105410.0,0.00014186]
[1749877345049,1.29236471,105420.0,105410.0,0.013349]
[1749877345254,2.0279614,105420.0,105410.0,0.01334899]
[1749877345453,2.0279614,105420.0,105410.0,0.01496917]
[1749877345755,2.0279614,105420.0,105410.0,0.01334904]
[1749877345960,2.0279614,105420.0,105410.0,0.02817631]
[1749877346261,2.0279614,105420.0,105410.0,0.01496917]
[1749877346453,2.0279614,105420.0,105410.0,0.02817643]
[1749877346853,2.2038814,105420.0,105410.0,0.02817644]
[1749877347054,2.2038814,105420.0,105410.0,0.02817632]
[1749877347560,2.2038814,105420.0,105410.0,0.01496917]
[1749877347760,2.2038814,105420.0,105410.0,0.02817628]
[1749877348061,2.2038814,105420.0,105410.0,0.0281763]
[1749877348461,2.2038814,105420.0,105410.0,0.01748737]
[1749877348759,2.2038814,105420.0,105410.0,0.03231468]
[1749877348957,2.2038814,105420.0,105410.0,0.01910752]
[1749877349158,2.2038814,105420.0,105410.0,0.01748738]
[1749877349367,2.2038814,105420.0,105410.0,0.03231469]
[1749877349668,2.2038814,105420.0,105410.0,0.01748738]
[1749877349864,2.2038814,105420.0,105410.0,0.03231468]
[1749877350260,2.2038814,105420.0,105410.0,0.03235963]
[1749877350665,2.2038814,105420.0,105410.0,0.03235964]
[1749877351167,2.2038814,105420.0,105410.0,0.03235967]
[1749877351363,2.2038814,105420.0,105410.0,0.03235968]
[1749877351563,2.2038814,105420.0,105410.0,0.01753237]
[1749877351968,2.2038814,105420.0,105410.0,0.03235968]
[1749877352158,2.2038814,105420.0,105410.0,0.03235963]
[1749877352662,2.2038814,105420.0,105410.0,0.03235964]
[1749877352863,2.2038814,105420.0,105410.0,0.01753233]
[1749877353068,2.2038814,105420.0,105410.0,0.01910736]
[1749877353266,2.2038814,105420.0,105410.0,0.0323394]
[1749877353568,2.2038814,105420.0,105410.0,0.00428021]
[1749877353773,2.2038814,105420.0,105410.0,0.03233936]
[1749877354067,2.2038814,105420.0,105410.0,0.00428021]
[1749877354272,2.2038814,105420.0,105410.0,0.03231583]
[1749877354464,2.2038814,105420.0,105410.0,0.01748886]
[1749877354657,2.2038814,105420.0,105410.0,0.00428021]
[1749877354859,2.2038814,105420.0,105410.0,0.01910718]
[1749877355060,2.2038814,105420.0,105410.0,0.03231579]
[1749877355260,2.2038814,105420.0,105410.0,0.01910717]
[1749877355461,2.2038814,105420.0,105410.0,0.01745987]
[1749877355667,2.2038814,105420.0,105410.0,0.00428021]
[1749877355968,2.2038814,105420.0,105410.0,0.03228685]
[1749877356166,2.2038814,105420.0,105410.0,0.03228147]
[1749877356469,2.2038814,105420.0,105410.0,0.01910718]
[1749877356665,2.2038814,105420.0,105410.0,0.00428021]
[1749877356868,2.2038814,105420.0,105410.0,0.0174545]
[1749877357169,2.23340471,105420.0,105410.0,0.03228147]
[1749877357371,2.23340471,105420.0,105410.0,0.03228148]
[1749877357570,2.23340471,105420.0,105410.0,0.03228147]
[1749877357772,2.23340471,105420.0,105410.0,0.00428021]
[1749877358072,2.23340471,105420.0,105410.0,0.01910718]
[1749877358372,2.23340471,105420.0,105410.0,0.03228147]
[1749877358671,2.23340471,105420.0,105410.0,0.03228146]
[1749877359072,2.35180284,105420.0,105410.0,0.03228147]
[1749877359577,2.35180284,105420.0,105410.0,0.02814312]
[1749877359875,2.35180284,105420.0,105410.0,0.01331614]
[1749877360077,2.35180284,105420.0,105410.0,0.02814311]
[1749877360373,2.35180284,105420.0,105410.0,0.01331614]
[1749877360875,2.35180284,105420.0,105410.0,0.02814311]
[1749877361273,2.35180284,105420.0,105410.0,0.02813753]
[1749877361575,2.35180284,105420.0,105410.0,0.0281375]
[1749877361967,2.16217764,105420.0,105390.0,0.10166706]
[1749877362170,0.5504613,105400.0,105390.0,0.30335638]
[1749877362569,0.91017152,105400.0,105390.0,0.49303568]
[1749877362768,0.68017152,105400.0,105390.0,0.49303568]
[1749877362975,0.71227152,105400.0,105390.0,0.49303568]
[1749877363175,0.94227152,105400.0,105390.0,0.49303568]
[1749877363371,0.94227152,105400.0,105390.0,0.49803568]
[1749877363576,0.71227152,105400.0,105390.0,0.49803568]
[1749877364277,0.72167752,105400.0,105390.0,0.49803568]
[1749877364478,0.72167752,105400.0,105390.0,0.50603568]
[1749877365778,0.36087752,105400.0,105390.0,0.50603568]
[1749877367875,0.59087752,105400.0,105390.0,0.50603568]
[1749877368177,0.1990673,105400.0,105390.0,1.04091058]
[1749877368375,0.00014186,105410.0,105400.0,0.1896611]
[1749877368676,0.2370376,105420.0,105410.0,0.19378145]
[1749877368981,0.2370376,105420.0,105410.0,0.98070052]
[1749877369168,0.2370376,105420.0,105410.0,1.07556452]
[1749877369374,0.2370376,105420.0,105410.0,1.13472467]
[1749877369880,0.2370376,105420.0,105410.0,1.14133711]
[1749877370083,0.2410376,105420.0,105410.0,1.14133711]
[1749877370476,0.2410376,105420.0,105410.0,1.1413371]
[1749877370677,0.2410376,105420.0,105410.0,1.14133709]
[1749877371273,0.2410376,105420.0,105410.0,1.08217694]
[1749877371477,0.2440376,105420.0,105410.0,1.07142617]
[1749877371674,0.2440376,105420.0,105410.0,1.08217694]
[1749877371878,0.2440376,105420.0,105410.0,1.11497694]
[1749877372075,0.2440376,105420.0,105410.0,1.02011294]
[1749877372279,0.25357502,105420.0,105410.0,1.02011294]
[1749877373287,0.2440376,105420.0,105410.0,1.02011294]
[1749877373579,0.2440376,105420.0,105410.0,1.02011289]
[1749877373779,0.2440376,105420.0,105410.0,1.02008266]
[1749877374278,0.2440376,105420.0,105410.0,1.03490579]
[1749877374478,0.2440376,105420.0,105410.0,1.02003267]
[1749877374782,0.2420376,105420.0,105410.0,1.0200326]
[1749877374982,0.2420376,105420.0,105410.0,1.03485597]
[1749877375184,0.2420376,105420.0,105410.0,1.02418554]
[1749877375384,0.2420376,105420.0,105410.0,1.0200326]
[1749877375581,0.2420376,105420.0,105410.0,1.03485591]
[1749877375781,0.2410376,105420.0,105410.0,1.03485591]
[1749877375976,0.2410376,105420.0,105410.0,1.02418554]
[1749877376180,0.2410376,105420.0,105410.0,1.0348559]
[1749877376481,0.25067197,105420.0,105410.0,1.0348559]
[1749877376885,0.25067197,105420.0,105410.0,1.00936217]
[1749877377085,0.25067197,105420.0,105410.0,1.0348559]
[1749877377680,0.25067197,105420.0,105410.0,1.00936217]
[1749877377882,0.25067197,105420.0,105410.0,1.0348559]
[1749877378585,0.25067197,105420.0,105410.0,1.03480468]
[1749877378980,0.25067197,105420.0,105410.0,1.03480442]
[1749877379487,0.25067197,105420.0,105410.0,0.99040836]
[1749877380586,0.25067197,105420.0,105410.0,0.99040151]
[1749877380880,0.25067197,105420.0,105410.0,1.26040151]
[1749877381474,0.25067197,105420.0,105410.0,1.24973824]
[1749877381678,0.25067197,105420.0,105410.0,1.26040151]
[1749877381880,0.25067197,105420.0,105410.0,1.23496643]
[1749877382077,0.25067197,105420.0,105410.0,1.24973824]
[1749877382282,0.25067197,105420.0,105410.0,1.24973732]
[1749877382477,0.25067197,105420.0,105410.0,1.24562807]
[1749877382682,0.25067197,105420.0,105410.0,1.26039647]
[1749877382882,0.25067197,105420.0,105410.0,1.23496643]
[1749877383083,0.25067197,105420.0,105410.0,1.24969158]
[1749877383287,0.25067197,105420.0,105410.0,1.24562676]
[1749877383586,0.25067197,105420.0,105410.0,0.99035149]
[1749877383786,0.25067197,105420.0,105410.0,0.97562652]
[1749877384085,0.25067197,105420.0,105410.0,0.99035119]
[1749877384285,0.25067197,105420.0,105410.0,0.9756265]
[1749877384482,0.20325947,105420.0,105410.0,1.34496643]
[1749877384786,0.20325947,105420.0,105410.0,1.03474559]
[1749877384982,0.20325947,105420.0,105410.0,1.00936217]
[1749877385178,0.20325947,105420.0,105410.0,1.03473841]
[1749877385386,0.20325947,105420.0,105410.0,1.02001567]
[1749877385687,0.20325947,105420.0,105410.0,1.0349045]
[1749877385881,0.20325947,105420.0,105410.0,1.03904295]
[1749877386087,0.20325947,105420.0,105410.0,1.05616749]
[1749877386287,0.20325947,105420.0,105410.0,1.07095871]
[1749877387082,0.20325947,105420.0,105410.0,1.04540052]
[1749877387381,0.20325947,105420.0,105410.0,1.06019174]
[1749877387588,0.20325947,105420.0,105410.0,1.05616749]
[1749877387889,0.20325947,105420.0,105410.0,1.07095871]
[1749877388086,0.20325947,105420.0,105410.0,1.07090533]
[1749877388583,0.20325947,105420.0,105410.0,1.04540052]
[1749877388788,0.20325947,105420.0,105410.0,1.07090533]
[1749877389190,0.20325947,105420.0,105410.0,1.11930507]
[1749877389494,0.20325947,105420.0,105410.0,1.11930521]
[1749877389691,0.20325947,105420.0,105410.0,1.13006486]
[1749877389891,0.20325947,105420.0,105410.0,1.11930512]
[1749877390092,0.20325947,105420.0,105410.0,1.13006476]
[1749877390286,0.20325947,105420.0,105410.0,1.11930512]
[1749877390491,0.20325947,105420.0,105410.0,1.13006476]
[1749877390885,0.20325947,105420.0,105410.0,1.11930512]
[1749877391292,0.20325947,105420.0,105410.0,1.13005896]
[1749877391593,0.20325947,105420.0,105410.0,1.13005897]
[1749877392394,0.20325947,105420.0,105410.0,1.13005896]
[1749877392793,0.20325947,105420.0,105410.0,1.11929932]
[1749877393092,0.20325947,105420.0,105410.0,1.13006136]
[1749877393293,0.20325947,105420.0,105410.0,1.11929932]
[1749877393489,0.20325947,105420.0,105410.0,1.13006136]